bitfinex/quotes_ETHUSD_20230113
["timestamp","ask_amount","ask_price","bid_price","bid_amount"]
[1673611205895,8.35503699,1409.3,1409.1,0.10938287]
[1673611205896,2.0,1409.2,1409.1,0.10938287]
[1673611206107,4.36863272,1409.2,1409.1,0.10938287]
[1673611206481,4.36863272,1409.2,1408.9,2.83530424]
[1673611206482,0.43686327,1409.1,1408.9,2.83530424]
[1673611206724,0.43686327,1409.1,1408.8,2.25538135]
[1673611206725,11.46596272,1409.0,1408.8,0.19675709]
[1673611206935,16.60993272,1409.0,1408.8,0.13075709]
[1673611207169,2.0,1408.8,1408.7,0.1370945]
[1673611207385,6.36873272,1408.8,1408.7,9.45e-05]
[1673611207530,4.43473272,1408.8,1408.6,0.1470884]
[1673611207905,7.16583272,1408.7,1408.6,0.1470884]
[1673611208074,7.23183272,1408.7,1408.6,0.1470884]
[1673611208270,10.41603899,1408.7,1408.6,0.1470884]
[1673611209315,17.51477899,1408.7,1408.6,0.1470884]
[1673611210208,6.246,1408.6,1408.5,0.1370945]
[1673611210423,6.84683272,1408.6,1408.5,0.1370945]
[1673611210580,9.17208462,1408.6,1408.5,0.1370945]
[1673611210788,5.3357519,1408.6,1408.5,0.1370945]
[1673611211036,0.5985,1408.6,1408.5,0.1370945]
[1673611211370,0.5325,1408.6,1408.5,0.1370945]
[1673611212259,1.202,1408.7,1408.5,0.1370945]
[1673611212260,0.5325,1408.7,1408.5,0.1370945]
[1673611212502,0.5325,1408.7,1408.5,0.06816928]
[1673611212717,0.5324,1408.8,1408.5,0.06816928]
[1673611212899,3.23703933,1408.8,1408.5,0.06816928]
[1673611213520,3.23703933,1408.8,1408.5,14.26754928]
[1673611213731,1.7294,1408.8,1408.5,14.27154928]
[1673611214163,1.7314,1408.8,1408.5,14.26954928]
[1673611214410,1.7294,1408.8,1408.5,14.27154928]
[1673611215016,1.7294,1408.8,1408.5,21.37129928]
[1673611215359,1.7294,1408.8,1408.5,21.34130675]
[1673611216309,7.55294805,1408.8,1408.5,21.34130675]
[1673611216497,7.61894805,1408.8,1408.5,0.04217675]
[1673611216710,7.61894805,1408.8,1408.5,2.03817675]
[1673611217570,7.61894805,1408.8,1408.5,0.03817675]
[1673611217779,14.71720805,1408.8,1408.5,0.03817675]
[1673611218091,1.4717208,1408.7,1408.5,0.03817675]
[1673611218245,3.60633272,1408.7,1408.5,0.03817675]
[1673611218663,10.70531272,1408.7,1408.5,0.03817675]
[1673611218920,3.60633272,1408.6,1408.5,0.03817675]
[1673611219201,20.44581272,1408.6,1408.5,0.03817675]
[1673611219408,21.04431272,1408.6,1408.5,0.03817675]
[1673611219618,23.85861799,1408.6,1408.5,0.03817675]
[1673611220355,6.246,1408.5,1408.4,0.10891165]
[1673611220568,21.30183272,1408.5,1408.4,0.10891165]
[1673611220776,12.20208272,1408.5,1408.4,0.10891165]
[1673611221137,12.20208272,1408.5,1408.4,0.10556124]
[1673611221328,15.01199552,1408.5,1408.4,0.10556124]
[1673611223403,2.8759128,1408.5,1408.4,0.10556124]
[1673611223648,2.797,1408.5,1408.4,0.10556124]
[1673611224191,6.40333272,1408.5,1408.4,0.10556124]
[1673611224416,15.30458272,1408.5,1408.4,0.10556124]
[1673611224888,15.53458272,1408.5,1408.4,0.10556124]
[1673611225309,22.63433272,1408.5,1408.4,0.10556124]
[1673611225638,27.31015452,1408.5,1408.4,0.10556124]
[1673611225870,26.77765452,1408.5,1408.4,0.10556124]
[1673611226482,31.02365452,1408.5,1408.4,0.10556124]
[1673611226701,31.02365452,1408.5,1408.3,0.03153326]
[1673611226702,33.71040452,1408.5,1408.3,0.03153326]
[1673611226889,9.87229817,1408.4,1408.3,0.03153326]
[1673611227240,15.84254817,1408.4,1408.3,0.03153326]
[1673611227555,3.16836545,1408.4,1408.3,0.03153326]
[1673611227724,2.797,1408.4,1408.3,0.03153326]
[1673611228339,6.40333272,1408.4,1408.3,0.03153326]
[1673611228546,7.66433272,1408.4,1408.3,0.03153326]
[1673611228786,7.89433272,1408.4,1408.3,0.03153326]
[1673611228995,14.99458272,1408.4,1408.3,0.03153326]
[1673611229232,18.38164417,1408.4,1408.3,0.03153326]
[1673611230337,33.78814417,1408.4,1408.3,0.03153326]
[1673611231076,34.32074417,1408.4,1408.3,0.03153326]
[1673611233293,13.01999417,1408.4,1408.3,0.03153326]
[1673611233496,19.58764417,1408.4,1408.3,0.03153326]
[1673611234538,26.68789417,1408.4,1408.3,0.03153326]
[1673611235225,26.68789417,1408.4,1408.2,0.08902197]
[1673611235403,2.66878942,1408.3,1408.2,0.08902197]
[1673611236862,9.76953942,1408.3,1408.2,0.08902197]
[1673611237065,2.73478942,1408.3,1408.2,0.08902197]
[1673611237270,2.66878942,1408.3,1408.2,0.08902197]
[1673611240968,9.76953942,1408.3,1408.2,0.08902197]
[1673611241204,9.83553942,1408.3,1408.2,0.08902197]
[1673611241580,23.03673942,1408.3,1408.2,0.08902197]
[1673611242031,26.87307214,1408.3,1408.2,0.08902197]
[1673611242743,23.26673942,1408.3,1408.2,0.02007195]
[1673611242950,13.2672,1408.3,1408.2,7.12133195]
[1673611243180,13.2672,1408.3,1408.2,7.12533195]
[1673611244798,20.36795,1408.3,1408.2,0.02407195]
[1673611244959,27.6987,1408.3,1408.2,0.02007195]
[1673611245166,34.39058987,1408.3,1408.2,0.02007195]
[1673611245396,41.49133987,1408.3,1408.2,0.02007195]
[1673611248132,42.69733987,1408.3,1408.2,0.02007195]
[1673611251593,14.4732,1408.3,1408.2,7.12133195]
[1673611251826,13.2672,1408.3,1408.2,7.12533195]
[1673611252351,13.2672,1408.3,1408.2,0.02407195]
[1673611252579,14.59392,1408.3,1408.2,0.02007195]
[1673611255135,14.59392,1408.3,1408.2,1.07549379]
[1673611255591,14.59392,1408.3,1408.2,0.88888309]
[1673611256926,0.066,1408.3,1408.2,22.88697604]
[1673611257152,15.4757,1408.5,1408.2,25.0018689]
[1673611258605,15.4757,1408.5,1408.2,0.004]
[1673611258606,33.28160272,1408.5,1408.2,0.004]
[1673611258833,0.23,1408.4,1408.1,10.7995089]
[1673611259047,0.23,1408.4,1408.2,1.58319604]
[1673611259048,17.75907027,1408.4,1408.2,1.58319604]
[1673611259390,17.82507027,1408.4,1408.2,1.58319604]
[1673611259564,1.78250703,1408.3,1408.2,1.58319604]
[1673611260001,15.98400703,1408.3,1408.2,1.58319604]
[1673611260210,15.98400703,1408.3,1408.1,3.7600889]
[1673611260211,16.28000703,1408.3,1408.1,3.7600889]
[1673611260427,16.28000703,1408.3,1408.1,3.6940889]
[1673611260428,16.05000703,1408.3,1408.1,3.6940889]
[1673611263264,16.05000703,1408.3,1408.2,1.58319604]
[1673611263590,16.28000703,1408.3,1408.2,1.58319604]
[1673611263968,9.17925703,1408.3,1408.2,1.58319604]
[1673611264386,1.84850703,1408.3,1408.2,1.58319604]
[1673611264619,1.78250703,1408.3,1408.2,1.58319604]
[1673611265071,1.78250703,1408.3,1408.1,8.75070604]
[1673611265285,1.78250703,1408.3,1408.1,8.68870604]
[1673611265513,1.78250703,1408.3,1408.2,1.06432291]
[1673611268831,1.78250703,1408.3,1408.2,0.76907427]
[1673611270557,20.78833975,1408.3,1408.2,0.76907427]
[1673611270837,20.78833975,1408.3,1408.0,1.64919604]
[1673611270838,14.97259426,1408.1,1408.0,1.64919604]
[1673611271048,15.03859426,1408.1,1408.0,1.58319604]
[1673611271258,18.64492698,1408.1,1408.0,1.58319604]
[1673611271523,18.87492698,1408.1,1408.0,1.58319604]
[1673611271718,18.87492698,1408.1,1407.9,1.64919604]
[1673611271887,1.8874927,1408.0,1407.9,1.58319604]
[1673611272307,2.1174927,1408.0,1407.9,1.58319604]
[1673611273023,2.1174927,1408.0,1407.9,3.71039518]
[1673611273244,1.36777426,1408.1,1407.9,2.12719914]
[1673611273411,1.30177426,1408.1,1408.0,1.59535921]
[1673611273846,0.99907426,1408.1,1408.0,1.59535921]
[1673611274056,0.76907426,1408.1,1408.0,1.59535921]
[1673611275080,3.93555622,1408.1,1408.0,1.59535921]
[1673611275289,3.93555622,1408.1,1407.9,3.78855835]
[1673611275505,3.93555622,1408.1,1407.9,3.72255835]
[1673611275958,3.93555622,1408.1,1407.9,1.59535921]
[1673611276136,3.93555622,1408.1,1407.9,3.72255835]
[1673611276355,0.39355562,1408.0,1407.9,3.72255835]
[1673611276711,0.39355562,1408.0,1407.9,1.59535921]
[1673611276873,11.10335622,1408.1,1407.9,3.72255835]
[1673611277310,11.10335622,1408.1,1407.9,1.59535921]
[1673611277311,18.20515622,1408.1,1407.9,1.59535921]
[1673611277963,18.20515622,1408.1,1407.8,11.1638393]
[1673611278129,3.32051562,1408.0,1407.8,3.9988693]
[1673611278337,1.82051562,1408.0,1407.9,1.59535921]
[1673611278591,8.92278562,1408.0,1407.9,1.59535921]
[1673611278812,9.21878562,1408.0,1407.9,1.59535921]
[1673611279036,9.21878562,1408.0,1407.9,2.65833403]
[1673611279388,9.21878562,1408.0,1407.9,1.06297482]
[1673611279650,9.21878562,1408.0,1407.9,2.65833403]
[1673611280554,16.32105562,1408.0,1407.9,1.06297482]
[1673611280964,27.02965834,1408.0,1407.8,1.40128577]
[1673611281182,5.46843828,1407.9,1407.8,1.33528577]
[1673611281397,26.84274828,1407.9,1407.8,1.33528577]
[1673611281719,19.73997828,1407.9,1407.8,1.33528577]
[1673611282715,19.73997828,1407.9,1407.8,0.27231095]
[1673611284921,9.56367556,1407.9,1407.8,0.27231095]
[1673611285662,9.03087556,1407.9,1407.8,0.27231095]
[1673611286396,10.11126395,1407.9,1407.8,0.27231095]
[1673611287225,10.11126395,1407.9,1407.8,0.17477414]
[1673611288661,3.00849395,1407.9,1407.8,0.17477414]
[1673611288976,1.08038839,1407.9,1407.8,0.17477414]
[1673611289817,1.08038839,1407.9,1407.8,1.23774896]
[1673611290487,1.08038839,1407.9,1407.8,8.34102896]
[1673611290718,1.08038839,1407.9,1407.8,18.24266817]
[1673611290888,1.08038839,1407.9,1407.8,32.619146]
[1673611290889,8.839e-05,1407.9,1407.8,32.619146]
[1673611291078,8.839e-05,1407.9,1407.8,39.55247803]
[1673611291743,8.839e-05,1407.9,1407.8,38.63027889]
[1673611292873,8.839e-05,1407.9,1407.8,37.43127889]
[1673611294384,8.839e-05,1407.9,1407.8,34.77459733]
[1673611294552,8.839e-05,1407.9,1407.8,43.08387733]
[1673611294763,8.839e-05,1407.9,1407.8,46.26437548]
[1673611294956,8.839e-05,1407.9,1407.8,43.08387733]
[1673611295606,8.839e-05,1407.9,1407.8,45.73721839]
[1673611295965,8.839e-05,1407.9,1407.8,42.13088567]
[1673611296180,8.839e-05,1407.9,1407.8,34.71091056]
[1673611296540,8.839e-05,1407.9,1407.8,25.48479257]
[1673611297628,8.839e-05,1407.9,1407.8,28.48479257]
[1673611297841,8.839e-05,1407.9,1407.8,30.60763056]
[1673611298218,8.839e-05,1407.9,1407.8,31.66879319]
[1673611299414,8.839e-05,1407.9,1407.8,36.39064323]
[1673611301321,8.839e-05,1407.9,1407.8,30.60854877]
[1673611301645,8.839e-05,1407.9,1407.8,29.01545213]
[1673611301860,8.839e-05,1407.9,1407.8,27.80945213]
[1673611302594,8.839e-05,1407.9,1407.8,29.40284698]
[1673611303421,8.839e-05,1407.9,1407.8,27.80945213]
[1673611306429,8.839e-05,1407.9,1407.8,30.46279319]
[1673611306681,8.839e-05,1407.9,1407.8,27.80945213]
[1673611307379,8.839e-05,1407.9,1407.8,30.46279319]
[1673611308486,8.839e-05,1407.9,1407.8,27.80945213]
[1673611309186,8.839e-05,1407.9,1407.8,30.46279319]
[1673611309405,8.839e-05,1407.9,1407.8,27.80945213]
[1673611311105,1.37308839,1407.9,1407.8,27.80945213]
[1673611311323,8.839e-05,1407.9,1407.8,27.80945213]
[1673611311704,1.37308839,1407.9,1407.8,27.80945213]
[1673611311937,1.56366723,1407.9,1407.8,18.9798484]
[1673611312166,1.56366723,1407.9,1407.8,12.93961325]
[1673611312550,1.56366723,1407.9,1407.8,12.93961183]
[1673611312797,1.56366723,1407.9,1407.8,9.93961183]
[1673611313806,1.56366723,1407.9,1407.8,8.8765684]
[1673611314235,1.56366723,1407.9,1407.8,9.93962343]
[1673611314661,1.56057282,1407.9,1407.8,8.8765684]
[1673611314872,1.56057282,1407.9,1407.8,9.93962617]
[1673611315494,1.56057282,1407.9,1407.8,0.17877414]
[1673611315696,8.66334282,1407.9,1407.8,0.17477414]
[1673611315905,8.95934282,1407.9,1407.8,0.17477414]
[1673611316110,9.49214282,1407.9,1407.8,0.17477414]
[1673611316396,8.95934282,1407.9,1407.8,0.17477414]
[1673611316747,1.85657282,1407.9,1407.8,0.17477414]
[1673611316957,1.79057282,1407.9,1407.8,0.17477414]
[1673611319425,1.79057282,1407.9,1407.8,1.23783191]
[1673611320012,1.79057282,1407.9,1407.8,0.17477414]
[1673611320224,8.89334282,1407.9,1407.8,0.17477414]
[1673611320427,8.95934282,1407.9,1407.8,0.17477414]
[1673611320640,1.85657282,1407.9,1407.8,0.17477414]
[1673611320896,1.79057282,1407.9,1407.8,0.17477414]
[1673611322054,0.5987,1408.0,1407.8,0.17477414]
[1673611322375,0.5987,1408.0,1407.8,15.44439191]
[1673611322376,0.5327,1408.0,1407.8,15.44439191]
[1673611322706,0.5327,1408.0,1407.8,17.04290617]
[1673611323208,0.5327,1408.0,1407.8,8.34511191]
[1673611323578,38.22319426,1408.1,1407.8,8.34511191]
[1673611323805,3.82231943,1408.0,1407.8,17.04290617]
[1673611324024,23.48667426,1408.1,1407.8,17.04290617]
[1673611324256,23.48667426,1408.1,1407.9,8.16574777]
[1673611324470,23.48667426,1408.1,1407.9,15.27251777]
[1673611324630,13.96307426,1408.1,1407.9,22.37528777]
[1673611326232,13.96307426,1408.1,1407.9,27.31303145]
[1673611326778,13.96307426,1408.1,1408.0,22.36986777]
[1673611327117,13.96307426,1408.1,1408.0,22.37386777]
[1673611327567,0.83507426,1408.1,1408.0,23.96838203]
[1673611327939,0.76907426,1408.1,1408.0,23.96838203]
[1673611328144,0.76907426,1408.1,1408.0,27.74889597]
[1673611328568,0.76907426,1408.1,1408.0,26.15438171]
[1673611329172,0.76907426,1408.1,1408.0,22.37386777]
[1673611329515,0.76907426,1408.1,1408.0,0.004]
[1673611329728,0.76907426,1408.1,1408.0,0.002]
[1673611329903,0.76907426,1408.1,1407.9,8.16958777]
[1673611330316,0.76907426,1408.1,1407.9,1.06705777]
[1673611330671,3.27054969,1408.1,1407.9,1.06305777]
[1673611332662,3.27054969,1408.1,1407.9,23.96579203]
[1673611332663,0.76907426,1408.1,1407.9,23.96579203]
[1673611332869,0.76907426,1408.1,1407.9,23.96979203]
[1673611334048,0.76907426,1408.1,1407.9,9.76425203]
[1673611335270,0.76609391,1408.1,1407.9,8.16973777]
[1673611335451,0.76609391,1408.1,1407.9,9.76425203]
[1673611335663,0.76609391,1408.1,1407.9,16.86702203]
[1673611336127,0.76609391,1408.1,1408.0,1.06305777]
[1673611336581,0.71609391,1408.1,1408.0,10.16532777]
[1673611336709,0.71609391,1408.1,1408.0,28.78377503]
[1673611336925,0.71609391,1408.1,1408.0,25.72071726]
[1673611337245,0.71609391,1408.1,1408.0,26.78426484]
[1673611337970,0.71609391,1408.1,1408.0,25.72071726]
[1673611338185,0.71609391,1408.1,1408.0,26.78422004]
[1673611338760,0.71609391,1408.1,1408.0,26.78419744]
[1673611338919,0.71609391,1408.1,1408.0,25.72071726]
[1673611340019,0.71609391,1408.1,1408.0,22.90532426]
[1673611340195,0.71609391,1408.1,1408.0,1.06755526]
[1673611340548,0.71609391,1408.1,1408.0,1.06355526]
[1673611344386,0.71609391,1408.1,1408.0,3.06355526]
[1673611344598,0.71609391,1408.1,1408.0,24.90132426]
[1673611344834,0.71609391,1408.1,1408.0,30.71276358]
[1673611345276,0.71609391,1408.1,1408.0,26.58992559]
[1673611347155,0.71609391,1408.1,1408.0,28.71276358]
[1673611347345,0.71609391,1408.1,1408.0,26.58992559]
[1673611348113,0.71609391,1408.1,1408.0,28.71276358]
[1673611348489,0.71609391,1408.1,1408.0,26.58992559]
[1673611348844,0.71609391,1408.1,1408.0,28.71276358]
[1673611349893,0.71609391,1408.1,1408.0,26.58992559]
[1673611350736,13.3447,1408.3,1408.0,26.58992559]
[1673611350901,13.3447,1408.3,1408.2,7.10126]
[1673611351267,0.066,1408.3,1408.2,7.10526]
[1673611351458,9.3587,1408.4,1408.2,7.10526]
[1673611351670,3.90687533,1408.4,1408.2,7.10526]
[1673611351844,3.84087533,1408.4,1408.2,7.10526]
[1673611353976,3.84087533,1408.4,1408.2,14.20652]
[1673611355994,0.5326,1408.3,1408.2,14.20652]
[1673611356634,6.60338727,1408.5,1408.2,22.51378]
[1673611356838,6.60338727,1408.5,1408.3,3.31404418]
[1673611357057,0.066,1408.5,1408.4,21.30075]
[1673611357359,12.7712,1408.6,1408.4,21.30475]
[1673611357360,0.066,1408.6,1408.4,21.30475]
[1673611357571,23.2727589,1408.7,1408.4,23.77282942]
[1673611358565,23.2727589,1408.7,1408.4,7.10425]
[1673611359299,23.2727589,1408.7,1408.4,14.2045]
[1673611360359,22.21886928,1408.7,1408.4,14.2045]
[1673611360822,22.21886928,1408.7,1408.4,21.30475]
[1673611361247,21.68337254,1408.7,1408.4,21.30475]
[1673611361461,21.68337254,1408.7,1408.5,2.130475]
[1673611361776,21.68337254,1408.7,1408.6,7.09924]
[1673611361964,12.88537254,1408.7,1408.6,13.14576237]
[1673611362674,0.11417254,1408.7,1408.6,13.14576237]
[1673611362879,0.04817254,1408.7,1408.6,13.14576237]
[1673611365665,25.33639254,1408.7,1408.6,0.004]
[1673611365978,36.06096696,1408.7,1408.4,0.004]
[1673611366183,40.73327942,1408.7,1408.3,7.10439]
[1673611367029,33.63453942,1408.7,1408.3,7.10439]
[1673611368242,33.63453942,1408.7,1408.3,14.20514]
[1673611368450,3.36345394,1408.6,1408.3,14.20514]
[1673611368709,40.73365942,1408.7,1408.3,14.20514]
[1673611372493,7.21291254,1408.7,1408.3,26.11822272]
[1673611372723,0.11417254,1408.7,1408.4,8.8749989]
[1673611372958,0.11417254,1408.7,1408.5,21.29925]
[1673611372959,0.04817254,1408.7,1408.5,21.29925]
[1673611373178,0.04817254,1408.7,1408.5,21.30325]
[1673611373348,0.04817254,1408.7,1408.6,2.130325]
[1673611373706,0.04817254,1408.7,1408.6,16.328805]
[1673611373913,0.04817254,1408.7,1408.6,16.332805]
[1673611375347,0.04817254,1408.7,1408.6,23.42949683]
[1673611376855,0.04817254,1408.7,1408.6,0.004]
[1673611376856,1.42117254,1408.7,1408.6,0.004]
[1673611377079,0.04817254,1408.7,1408.5,7.10335]
[1673611383841,0.04817254,1408.7,1408.5,0.004]
[1673611384060,0.04817254,1408.7,1408.4,17.20424]
[1673611384061,8.58376173,1408.7,1408.4,17.20424]
[1673611384298,8.64976173,1408.7,1408.4,17.20424]
[1673611386077,8.64976173,1408.7,1408.4,14.20424]
[1673611387228,0.11417254,1408.7,1408.4,21.30449]
[1673611387439,0.04817254,1408.7,1408.4,21.30449]
[1673611388291,0.04817254,1408.7,1408.4,22.36715618]
[1673611389351,0.98219086,1408.6,1408.4,22.36715618]
[1673611389561,0.98219086,1408.6,1408.4,25.68984322]
[1673611389765,0.98219086,1408.6,1408.4,25.69184322]
[1673611390814,0.98219086,1408.6,1408.4,27.28635748]
[1673611391153,0.98219086,1408.6,1408.5,24.36191618]
[1673611391328,0.98219086,1408.6,1408.5,25.36591618]
[1673611391540,0.98219086,1408.6,1408.5,13.96907275]
[1673611391791,0.98219086,1408.6,1408.5,10.10375]
[1673611392228,7.14693254,1408.7,1408.5,3.004]
[1673611392513,14.31196254,1408.7,1408.5,3.0]
[1673611392741,14.31196254,1408.7,1408.4,7.16596]
[1673611392742,21.41103254,1408.7,1408.4,7.16596]
[1673611392952,2.14110325,1408.6,1408.4,7.10396]
[1673611393554,2.09110325,1408.6,1408.4,7.10396]
[1673611394389,22.46492216,1408.7,1408.4,7.10396]
[1673611396856,24.04587328,1408.7,1408.4,7.10396]
[1673611397163,22.46492216,1408.7,1408.4,7.10396]
[1673611399579,0.11417254,1408.7,1408.4,22.36712618]
[1673611399892,0.11417254,1408.7,1408.4,23.96164044]
[1673611399893,0.04817254,1408.7,1408.4,23.96164044]
[1673611400102,0.04817254,1408.7,1408.5,2.39616404]
[1673611400262,0.04817254,1408.7,1408.5,9.49568404]
[1673611400472,0.04817254,1408.7,1408.5,9.49968404]
[1673611400682,0.04817254,1408.7,1408.5,16.59943404]
[1673611400898,0.04817254,1408.7,1408.5,23.69718404]
[1673611401124,0.04817254,1408.7,1408.6,2.3697184]
[1673611401363,0.04817254,1408.7,1408.6,7.09924]
[1673611401529,0.04817254,1408.7,1408.6,7.10324]
[1673611404268,0.04817254,1408.7,1408.6,7.10124]
[1673611404733,0.04817254,1408.7,1408.6,7.10324]
[1673611405212,0.04817254,1408.7,1408.6,21.30172]
[1673611405415,0.04817254,1408.7,1408.6,23.78397502]
[1673611406821,0.04817254,1408.7,1408.6,16.68473502]
[1673611406998,0.04817254,1408.7,1408.6,14.20248]
[1673611407213,1.42117254,1408.7,1408.6,0.004]
[1673611407584,0.99070963,1408.5,1408.4,8.16661618]
[1673611407937,0.99070963,1408.5,1408.4,11.16661618]
[1673611409147,0.99070963,1408.5,1408.4,4.06666618]
[1673611409305,0.99070963,1408.5,1408.4,1.06266618]
[1673611409670,0.99070963,1408.5,1408.3,16.92411044]
[1673611409880,0.99070963,1408.5,1408.3,16.86211044]
[1673611410246,1.80630659,1408.5,1408.3,16.86211044]
[1673611410667,1.80630659,1408.5,1408.3,15.26759618]
[1673611415332,0.99070963,1408.5,1408.3,15.26759618]
[1673611420075,0.99070963,1408.5,1408.3,0.004]
[1673611420243,15.19021963,1408.5,1408.3,3.0]
[1673611420463,15.25621963,1408.5,1408.3,3.0]
[1673611420678,15.25621963,1408.5,1408.2,4.12866618]
[1673611420878,1.52562196,1408.4,1408.2,4.06266618]
[1673611421134,15.72646196,1408.4,1408.2,4.06266618]
[1673611421443,15.79246196,1408.4,1408.2,4.06266618]
[1673611421802,8.69190196,1408.4,1408.2,4.06266618]
[1673611422227,8.69190196,1408.4,1408.2,3.0]
[1673611422883,7.9701602,1408.3,1408.1,0.066]
[1673611423094,15.1371302,1408.3,1408.0,8.16865618]
[1673611423321,15.1371302,1408.3,1408.0,1.06666618]
[1673611423595,1.51371302,1408.2,1408.0,1.06266618]
[1673611424278,8.61504302,1408.2,1407.9,24.68353044]
[1673611424437,8.68104302,1408.2,1407.9,16.86623044]
[1673611424855,8.68104302,1408.2,1407.9,9.76370044]
[1673611425122,0.8681043,1408.1,1407.9,2.66118044]
[1673611425343,0.8681043,1408.1,1407.9,2.65718044]
[1673611425648,15.0717443,1408.1,1407.9,1.06266618]
[1673611425808,15.1377443,1408.1,1407.9,4.06266618]
[1673611426018,1.50717443,1408.0,1407.9,4.06266618]
[1673611426601,1.50717443,1408.0,1407.9,3.0]
[1673611427121,8.60944443,1408.0,1407.9,3.0]
[1673611427352,15.77771443,1408.0,1407.8,3.24077414]
[1673611427489,1.57777144,1407.9,1407.8,0.17477414]
[1673611428124,19.61964416,1407.9,1407.8,0.17477414]
[1673611428333,19.68564416,1407.9,1407.8,0.17477414]
[1673611428541,26.78841416,1407.9,1407.8,0.17477414]
[1673611429073,27.32121416,1407.9,1407.8,0.17477414]
[1673611431812,27.31901977,1407.9,1407.8,0.17477414]
[1673611435382,9.27714705,1407.9,1407.8,0.17477414]
[1673611435644,7.70157,1407.9,1407.8,0.17477414]
[1673611437514,7.16877,1407.9,1407.8,0.17477414]
[1673611442993,7.16877,1407.9,1407.8,0.17205307]
[1673611444154,7.70157,1407.9,1407.8,0.17205307]
[1673611445478,7.16877,1407.9,1407.8,0.17205307]
[1673611445691,18.76034744,1407.9,1407.8,0.17205307]
[1673611446437,25.86311744,1407.9,1407.8,0.17205307]
[1673611446680,26.39591744,1407.9,1407.8,0.17205307]
[1673611446840,25.86311744,1407.9,1407.8,0.17205307]
[1673611447275,29.46945016,1407.9,1407.7,0.15816716]
[1673611447505,8.42264446,1407.8,1407.7,0.15816716]
[1673611447827,29.00448446,1407.8,1407.7,0.15816716]
[1673611449253,27.79848446,1407.8,1407.7,0.15816716]
[1673611450042,0.066,1407.8,1407.7,0.15816716]
[1673611450357,26.33063744,1407.9,1407.7,0.15816716]
[1673611450358,25.86383744,1407.9,1407.7,0.15816716]
[1673611450551,29.47017016,1407.9,1407.7,0.15816716]
[1673611452093,22.36700016,1407.9,1407.7,0.15816716]
[1673611452568,22.89980016,1407.9,1407.7,0.15816716]
[1673611452727,22.36700016,1407.9,1407.7,0.15816716]
[1673611453696,22.89980016,1407.9,1407.7,0.15816716]
[1673611454346,2.28998002,1407.8,1407.7,0.15816716]
[1673611454525,7.10328,1407.8,1407.7,0.15816716]
[1673611454742,7.16928,1407.8,1407.7,0.15816716]
[1673611456129,14.80536,1407.8,1407.7,0.15816716]
[1673611456526,14.27256,1407.8,1407.7,0.15816716]
[1673611457196,14.27256,1407.8,1407.7,0.05989771]
[1673611457440,17.98319602,1407.8,1407.7,0.05989771]
[1673611457781,28.69280874,1407.8,1407.7,0.05989771]
[1673611458195,29.22560874,1407.8,1407.7,0.05989771]
[1673611458768,29.45560874,1407.8,1407.7,0.05989771]
[1673611459474,30.11980874,1407.8,1407.7,1e-08]
[1673611459678,30.65260874,1407.8,1407.7,1e-08]
[1673611463278,2.0,1407.7,1407.5,1.03642897]
[1673611463473,7.10429,1407.6,1407.5,1.03642897]
[1673611463815,7.17029,1407.6,1407.5,1.03642897]
[1673611464560,24.98520272,1407.6,1407.5,1.03642897]
[1673611464712,26.42120272,1407.6,1407.5,1.03642897]
[1673611464936,31.97736108,1407.6,1407.5,1.03642897]
[1673611466340,58.86136108,1407.6,1407.5,1.03642897]
[1673611466555,58.43001625,1407.6,1407.5,1.03642897]
[1673611466771,54.40736108,1407.6,1407.5,1.03642897]
[1673611466923,60.94474835,1407.6,1407.5,1.03642897]
[1673611467661,60.94474835,1407.6,1407.5,0.83976252]
[1673611469188,68.38774835,1407.6,1407.5,0.83976252]
[1673611469505,19.26383563,1407.6,1407.5,0.83976252]
[1673611469663,7.17029,1407.6,1407.5,0.83976252]
[1673611470213,14.27458,1407.6,1407.5,0.83976252]
[1673611470619,14.27458,1407.6,1407.5,0.79002771]
[1673611470833,17.88091272,1407.6,1407.5,0.79002771]
[1673611471046,25.74810272,1407.6,1407.5,0.79002771]
[1673611471266,30.48516908,1407.6,1407.5,0.79002771]
[1673611471485,29.95226908,1407.6,1407.5,0.79002771]
[1673611471869,19.01164636,1407.6,1407.5,0.79002771]
[1673611472210,14.27458,1407.6,1407.5,0.79002771]
[1673611472811,0.066,1407.6,1407.5,0.79002771]
[1673611473054,30.44889087,1407.7,1407.5,0.79002771]
[1673611473249,34.58802359,1407.7,1407.5,0.79002771]
[1673611473459,13.1753,1407.7,1407.5,0.79002771]
[1673611474945,0.066,1407.7,1407.6,2.0]
[1673611475133,0.066,1407.7,1407.5,7.89476771]
[1673611475134,20.80852727,1408.0,1407.5,25.20212389]
[1673611475338,20.80852727,1408.0,1407.5,25.14012389]
[1673611475671,24.98000272,1408.0,1407.5,15.77466771]
[1673611475877,4.49800027,1407.9,1407.5,8.66992771]
[1673611476115,7.10332,1407.8,1407.5,8.66992771]
[1673611476444,7.16932,1407.8,1407.5,8.66992771]
[1673611476596,14.27264,1407.8,1407.5,8.66992771]
[1673611477715,27.27984,1407.8,1407.5,0.59604628]
[1673611477859,27.27984,1407.8,1407.5,0.59204628]
[1673611478307,30.96792403,1407.8,1407.5,0.59204628]
[1673611478598,38.07124403,1407.8,1407.5,0.59204628]
[1673611479134,41.67757675,1407.8,1407.5,0.59204628]
[1673611480757,16.67953272,1407.8,1407.5,21.90641628]
[1673611480910,16.67953272,1407.8,1407.5,21.91041628]
[1673611481120,16.67953272,1407.8,1407.5,14.80562628]
[1673611481373,23.78285272,1407.8,1407.5,14.80562628]
[1673611481592,16.67953272,1407.8,1407.5,14.80562628]
[1673611482108,16.67953272,1407.8,1407.5,18.75188913]
[1673611482109,13.0732,1407.8,1407.5,18.75188913]
[1673611482267,20.17648,1407.8,1407.5,18.75188913]
[1673611482721,13.0732,1407.8,1407.5,18.75188913]
[1673611483472,13.0732,1407.8,1407.5,18.48900818]
[1673611483690,13.0732,1407.8,1407.5,28.38731244]
[1673611483691,0.066,1407.8,1407.5,28.38731244]
[1673611483894,0.066,1408.0,1407.7,3.194]
[1673611484056,0.066,1408.1,1407.7,17.46183062]
[1673611484266,1.05388962,1408.1,1407.8,1.74618306]
[1673611484471,24.3934507,1408.2,1407.8,1.80645399]
[1673611484472,25.44734032,1408.2,1407.8,1.80645399]
[1673611484682,25.44734032,1408.2,1407.8,7.16353094]
[1673611484939,25.44734032,1408.2,1407.8,7.16753095]
[1673611485216,25.44734032,1408.2,1407.8,7.16753097]
[1673611485420,24.3990892,1408.2,1407.8,7.16753099]
[1673611485755,32.47287484,1408.2,1407.8,7.16753102]
[1673611485968,32.47287484,1408.2,1407.8,7.16753104]
[1673611486321,30.35922372,1408.2,1407.8,7.16753105]
[1673611486502,30.35922372,1408.2,1407.8,7.16753106]
[1673611486733,0.5327,1408.1,1407.8,7.16753107]
[1673611486886,0.5327,1408.1,1407.8,9.5369068]
[1673611487104,25.96554234,1408.1,1407.8,0.0642711]
[1673611487312,26.03154234,1408.1,1407.8,0.0602711]